bitfinex-derivatives/quotes_SOLF0:USTF0_20241216
["timestamp","ask_amount","ask_price","bid_price","bid_amount"]
[1734383836294,1.38057187,217.63,217.57,2.2974]
[1734383836492,0.69028594,217.63,217.57,2.2974]
[1734383837102,2.2971,217.61,217.57,2.2974]
[1734383840100,2.9824,217.64,217.55,5.57843162]
[1734383840297,2.2972,217.6,217.56,2.2976]
[1734383842002,2.2972,217.6,217.58,7.85213552]
[1734383842204,2.2972,217.6,217.59,2.46]
[1734383844205,7.85213552,217.62,217.56,2.46]
[1734383844505,7.85213552,217.6,217.55,5.57843162]
[1734383844904,18.45032572,217.6,217.55,5.57843162]
[1734383845100,7.85213552,217.6,217.55,5.57843162]
[1734383845297,2.2976,217.56,217.55,5.57843162]
[1734383848399,2.2976,217.56,217.49,7.85213552]
[1734383848400,2.2982,217.51,217.49,7.85213552]
[1734383849006,2.2982,217.5,217.49,7.85213552]
[1734383849305,7.85213552,217.54,217.47,7.85213552]
[1734383849508,7.85213552,217.52,217.47,7.85213552]
[1734383849702,2.2984,217.48,217.47,7.85213552]
[1734383851306,1.5701,217.56,217.47,13.30108213]
[1734383851510,2.2982,217.51,217.5,7.85213552]
[1734383852301,7.85213552,217.55,217.48,7.85213552]
[1734383852501,0.69057103,217.54,217.48,7.85213552]
[1734383852706,7.85213552,217.53,217.47,5.44894661]
[1734383853609,2.2984,217.48,217.47,5.44894661]
[1734383853813,2.2984,217.48,217.47,13.30108213]
[1734383855817,11.79243552,217.55,217.47,13.30108213]
[1734383856024,0.69060393,217.54,217.49,7.85213552]
[1734383856216,0.69060376,217.54,217.49,7.85213552]
[1734383857118,2.2983,217.5,217.49,7.85213552]
[1734383859112,1.5701,217.56,217.49,7.85213552]
[1734383859321,1.5701,217.56,217.53,7.85213552]
[1734383859520,1.6207,217.58,217.53,7.85213552]
[1734383860224,2.46,217.61,217.55,7.85213552]
[1734383860424,0.6904347,217.6,217.55,7.85213552]
[1734383860721,2.2976,217.57,217.55,7.85213552]
[1734383861225,2.2976,217.56,217.55,7.85213552]
[1734383867524,2.2976,217.56,217.53,7.85213552]
[1734383869723,2.2975,217.58,217.53,10.15003552]
[1734383869927,7.85213552,217.62,217.55,7.85213552]
[1734383870126,0.69038435,217.61,217.55,7.85213552]
[1734383870625,7.85213552,217.62,217.55,7.85213552]
[1734383871329,2.2975,217.58,217.55,7.85213552]
[1734383871520,7.85213552,217.62,217.55,7.85213552]
[1734383872329,0.69035595,217.61,217.55,7.85213552]
[1734383872549,2.2975,217.57,217.55,7.85213552]
[1734383873233,78.85111997,217.68,217.55,10.29213552]
[1734383873433,0.69028054,217.67,217.64,7.85213552]
[1734383873633,7.85213552,217.71,217.64,7.85213552]
[1734383873833,2.2965,217.67,217.64,10.14883552]
[1734383875133,10.58309019,217.71,217.64,7.85213552]
[1734383875336,6.37959602,217.73,217.66,10.14863552]
[1734383875628,0.69000505,217.72,217.66,10.14863552]
[1734383875826,0.69000436,217.72,217.66,10.14863552]
[1734383876236,2.296,217.71,217.68,7.85213552]
[1734383876539,6.37959602,217.73,217.68,7.85213552]
[1734383877040,2.2961,217.71,217.68,7.85213552]
[1734383878043,2.2959,217.73,217.7,7.85213552]
[1734383879440,2.2959,217.72,217.7,7.85213552]
[1734383881141,78.8209788,217.8,217.7,7.85213552]
[1734383881142,2.2957,217.75,217.7,10.14823552]
[1734383881344,2.2957,217.75,217.74,7.85213552]
[1734383881541,2.98547845,217.75,217.74,7.85213552]
[1734383881741,2.2957,217.75,217.74,7.85213552]
[1734383881941,2.98546401,217.75,217.74,7.85213552]
[1734383882243,4.7181,217.83,217.74,7.85213552]
[1734383882548,0.68964466,217.82,217.78,7.85213552]
[1734383883043,0.68964466,217.82,217.8,7.85213552]
[1734383883343,0.68964466,217.82,217.8,10.14713552]
[1734383883547,80.25520565,217.9,217.8,7.85213552]
[1734383883742,80.25520565,217.9,217.83,7.85213552]
[1734383884339,2.2946,217.85,217.83,7.85213552]
[1734383884754,80.25520565,217.9,217.83,7.85213552]
[1734383885546,2.2944,217.87,217.83,10.29213552]
[1734383886039,2.2944,217.87,217.83,14.6781344]
[1734383886247,80.25520565,217.9,217.83,14.6781344]
[1734383887246,3.7768,217.9,217.83,14.6781344]
[1734383887445,224.08282784,217.88,217.86,12.2381344]
[1734383887648,318.4657198,217.92,217.86,12.2381344]
[1734383887948,2.2935,217.95,217.91,12.2381344]
[1734383888147,2.2935,217.95,217.91,14.6781344]
[1734383888847,2.2935,217.95,217.91,2.44]
[1734383889851,2.2936,217.94,217.91,2.44]
[1734383890151,12.2381344,217.98,217.88,2.44]
[1734383890352,1.536,217.97,217.88,2.44]
[1734383890649,2.294,217.91,217.88,2.44]
[1734383891345,2.44,218.15,217.9,24.4762688]
[1734383891550,1.5198,218.1,217.99,12.2381344]
[1734383891770,1.5856,218.09,217.99,12.2381344]
[1734383891952,4.7143859,218.09,217.99,12.2381344]
[1734383892351,0.6887859,218.08,217.99,12.2381344]
[1734383893147,1.5856,218.09,217.99,12.2381344]
[1734383893453,2.2924,218.05,217.99,14.5311344]
[1734383894556,2.2924,218.05,218.0,2.2929]
[1734383895053,1.536,218.14,217.97,2.44]
[1734383895054,5.57762873,218.16,218.02,12.2381344]
[1734383895254,5.57762873,218.16,218.09,12.2381344]
[1734383895452,5.57762873,218.16,218.09,14.6781344]
[1734383895646,5.604,218.23,218.09,14.6781344]
[1734383895953,2.2912,218.17,218.09,14.6781344]
[1734383896554,0.68839081,218.22,218.09,14.6781344]
[1734383896555,2.2913,218.16,218.09,14.6781344]
[1734383897452,2.2914,218.15,218.09,14.6781344]
[1734383899659,2.2914,218.15,218.09,16.9701344]
[1734383900158,2.2914,218.15,218.09,14.6781344]
[1734383900556,2.2918,218.11,218.09,12.2381344]
[1734383900855,2.2918,218.11,218.07,2.44]
[1734383905158,2.44,218.17,218.09,12.2381344]
[1734383905668,1.5082,218.21,218.09,12.2381344]
[1734383905669,2.2917,218.13,218.09,12.2381344]
[1734383905862,2.44,218.2,218.09,12.2381344]
[1734383906064,2.44,218.2,218.07,2.44]
[1734383906263,2.292,218.1,218.07,2.44]
[1734383906655,1.5082,218.21,217.84,461.99839019]
[1734383906656,2.44,218.15,218.0,2.44]
[1734383906859,3.8984,218.14,218.0,14.6781344]
[1734383907364,2.2924,218.06,218.01,2.2928]
[1734383908163,2.2924,218.06,218.0,14.6781344]
[1734383908364,2.2924,218.06,218.0,16.9711344]
[1734383908765,2.2925,218.05,218.0,16.9711344]
[1734383908969,2.2925,218.05,218.0,14.6781344]
[1734383909562,12.2381344,218.13,218.0,14.6781344]
[1734383909866,12.2381344,218.1,217.98,82.5929]
[1734383910060,3.909,218.09,217.98,82.5929]
[1734383910364,2.2931,217.99,217.98,82.5929]
[1734383912567,9.94687067,218.24,217.98,94.8310344]
[1734383912764,1.4854,218.16,218.04,12.2381344]
[1734383913067,2.2917,218.13,218.06,2.2923]
[1734383913367,1.4854,218.16,218.04,14.6781344]
[1734383913560,3.9254,218.16,218.04,14.6781344]
[1734383913762,2.2923,218.07,218.04,14.6781344]
[1734383913964,3.9254,218.16,218.04,14.6781344]
[1734383914874,3.156,218.22,218.07,12.2381344]
[1734383915067,1.5,218.21,218.13,12.2381344]
[1734383916171,2.2912,218.17,218.13,12.2381344]
[1734383917065,2.291,218.19,218.13,14.5297344]
[1734383917665,2.2911,218.18,218.13,14.5297344]
[1734383917862,1.5,218.21,218.13,12.2381344]
[1734383918068,2.2913,218.16,218.13,12.2381344]
[1734383918466,1.5,218.21,218.11,2.44]
[1734383918864,2.2911,218.18,218.11,2.44]
[1734383919068,1.5,218.21,218.11,2.44]
[1734383919466,2.2918,218.12,218.07,2.2922]
[1734383919667,2.2918,218.12,218.07,2.44]
[1734383920166,2.2918,218.12,218.11,5.49307682]
[1734383922965,1.5,218.21,218.11,5.49307682]
[1734383923165,1.5,218.21,218.16,12.2381344]
[1734383924068,2.2911,218.19,218.16,12.2381344]
[1734383924368,1.5,218.21,218.16,12.2381344]
[1734383924573,1.5,218.21,218.13,12.2381344]
[1734383924774,2.291,218.19,218.13,12.2381344]
[1734383925076,1.5,218.21,218.16,12.2381344]
[1734383925472,2.291,218.19,218.16,12.2381344]
[1734383926573,2.2906,218.23,218.17,2.44]
[1734383926773,2.2906,218.23,218.19,12.2381344]
[1734383927173,1.5537,218.28,218.17,4.7312]
[1734383927174,1.5537,218.28,218.17,2.44]
[1734383927371,12.2381344,218.25,218.13,2.44]
[1734383927676,2.2912,218.17,218.13,2.44]
[1734383927871,1.5537,218.28,218.16,2.2913]
[1734383928469,2.2908,218.21,218.16,2.2913]
[1734383930269,3.9937,218.28,218.15,12.2381344]
[1734383930270,2.2904,218.25,218.15,12.2381344]
[1734383930470,12.2381344,218.27,218.15,12.2381344]
[1734383931168,2.2912,218.17,218.15,12.2381344]
[1734383931570,2.2914,218.15,218.12,12.2381344]
[1734383931779,2.2914,218.15,218.12,14.6781344]
[1734383931980,2.2914,218.15,218.12,12.2381344]
[1734383932170,2.2914,218.15,218.12,14.6781344]
[1734383933078,2.2915,218.14,218.12,12.2381344]
[1734383933377,3.1304,218.22,218.12,12.2381344]
[1734383934080,2.2915,218.15,218.12,12.2381344]
[1734383934478,3.1304,218.22,218.12,12.2381344]
[1734383935481,2.2916,218.14,218.12,12.2381344]
[1734383936478,2.2917,218.12,218.11,5.49307682]
[1734383936784,12.2381344,218.21,218.11,5.49307682]
[1734383937479,3.1304,218.22,218.11,5.49307682]
[1734383937674,2.2916,218.14,218.11,5.49307682]
[1734383938282,12.2381344,218.21,218.07,54.42100465]
[1734383938487,2.2921,218.09,218.06,2.44]
[1734383940183,2.2921,218.09,218.05,14.5305344]
[1734383940390,2.2921,218.09,218.05,16.9705344]
[1734383941183,2.2921,218.09,218.08,5.3750211]
[1734383944392,2.2919,218.1,218.08,5.3750211]
[1734383945295,2.2919,218.1,218.08,17.6131555]
[1734383945496,2.2917,218.13,218.08,19.9052555]
[1734383945997,1.5136,218.19,218.08,19.9052555]
[1734383946193,0.68827058,218.18,218.08,19.9052555]
[1734383946496,0.68829036,218.17,218.08,17.6131555]
[1734383946697,0.68829036,218.16,218.08,5.3750211]
[1734383946991,0.688336,218.15,218.08,5.3750211]
[1734383947196,0.688336,218.14,218.08,5.3750211]
[1734383947497,0.688336,218.13,218.08,5.3750211]
[1734383947795,0.688336,218.13,218.05,14.6781344]
[1734383947796,0.68839276,218.12,217.98,135.0529]
[1734383948097,0.68842186,218.11,218.01,12.2381344]
[1734383948292,2.20152186,218.12,218.01,14.6781344]
[1734383948598,0.68846404,218.11,218.01,14.6781344]
[1734383948790,0.68846404,218.11,218.02,2.2927]
[1734383949289,2.2925,218.04,218.01,16.9709344]
[1734383949488,2.2925,218.04,218.01,14.6781344]
[1734383949691,13.7512344,218.12,218.01,12.2381344]
[1734383949898,2.2927,218.03,218.01,12.2381344]
[1734383950095,2.2927,218.03,218.0,2.44]
[1734383950701,2.2928,218.02,218.0,2.44]
[1734383951901,2.2928,218.02,218.01,5.51139921]
[1734383952102,2.2926,218.03,218.01,5.51139921]
[1734383954801,12.2381344,218.09,218.01,5.51139921]
[1734383955002,2.2927,218.02,218.01,5.51139921]
[1734383955505,2.2927,218.02,217.98,84.886]
[1734383955506,2.44,218.08,217.98,82.5929]
[1734383955808,12.2381344,218.06,217.98,82.5929]
[1734383955999,2.2931,217.99,217.98,82.5929]
[1734383957998,2.2931,217.99,217.98,60.7917]
[1734383959200,2.98203991,217.99,217.98,60.7917]
[1734383959406,2.98203991,217.99,217.82,1.5909]
[1734383959407,2.2942,217.89,217.84,12.2381344]
[1734383959609,14.6781344,217.96,217.84,4.7346]
[1734383959807,2.44,217.95,217.84,4.7346]
[1734383960110,2.2943,217.88,217.84,4.7346]
[1734383960514,2.2943,217.88,217.84,2.2946]
[1734383960714,2.44,217.95,217.83,1.595]
[1734383960910,2.44,217.95,217.82,16.2690344]
[1734383961312,2.44,217.95,217.85,5.60907844]
[1734383961613,12.2381344,217.93,217.82,1.5909]
[1734383961912,12.2381344,217.9,217.82,1.5909]
[1734383962108,2.2945,217.85,217.82,1.5909]
[1734383962505,2.44,217.89,217.8,7.04856024]
[1734383962706,2.2949,217.82,217.8,1.595]
[1734383962912,2.2949,217.82,217.76,18.85871991]
[1734383963106,2.2949,217.82,217.77,5.56595933]
[1734383964415,2.44,217.89,217.78,12.2381344]
[1734383965011,2.44,217.89,217.81,2.2949]
[1734383965207,2.44,217.89,217.79,1.5533]
[1734383965510,2.44,217.89,217.8,4.0364]
[1734383965914,2.2943,217.88,217.82,2.2948]
[1734383966116,2.2943,217.88,217.81,1.5625]
[1734383966117,2.44,217.89,217.81,1.5625]
[1734383966814,2.2944,217.87,217.81,1.5625]
[1734383967114,2.44,217.89,217.81,1.5625]
[1734383967814,2.2946,217.85,217.81,1.5625]
[1734383968316,12.2381344,217.9,217.81,1.5625]
[1734383968612,2.2944,217.87,217.81,3.8574]
[1734383970315,12.2381344,217.9,217.81,3.8574]
[1734383970316,2.2945,217.86,217.81,3.8574]
[1734383970947,2.2945,217.86,217.81,1.5625]
[1734383971315,2.2945,217.85,217.81,1.5625]
[1734383973513,3.12921193,217.95,217.81,13.8006344]
[1734383973714,2.44,217.95,217.81,13.8006344]
[1734383973909,2.2941,217.89,217.84,12.2381344]
[1734383974112,2.44,217.92,217.81,13.8006344]
[1734383974515,2.2946,217.84,217.81,13.8006344]
[1734383974915,2.2946,217.84,217.81,1.5625]
[1734383975112,12.2381344,217.9,217.81,1.5625]
[1734383975819,12.2381344,217.86,217.79,1.5533]
[1734383976014,14.6781344,217.86,217.77,5.56595933]
[1734383976219,14.6781344,217.86,217.74,2.44]
[1734383976442,2.2953,217.78,217.72,14.5339344]
[1734383976611,12.2381344,217.83,217.72,12.2381344]
[1734383976811,2.2956,217.76,217.71,2.44]
[1734383977420,2.44,217.81,217.7,1.5258]
[1734383977623,12.2381344,217.8,217.7,1.5258]
[1734383978620,2.2958,217.73,217.7,1.5258]
[1734383979615,2.2959,217.72,217.7,1.5258]
[1734383979819,12.2381344,217.8,217.7,7.01629462]
[1734383980018,2.44,217.81,217.7,7.01629462]
[1734383980221,2.44,217.84,217.71,2.44]
[1734383980426,2.44,217.83,217.74,2.2956]
[1734383980625,2.2952,217.8,217.74,2.2956]
[1734383980826,2.44,217.83,217.74,2.2956]
[1734383982026,2.44,217.84,217.74,2.2956]
[1734383982523,2.2952,217.79,217.74,2.2956]
[1734383983422,2.2952,217.79,217.73,2.2958]
[1734383983820,2.44,217.84,217.73,2.2958]
[1734383984124,2.44,217.84,217.72,2.2959]
[1734383985125,2.44,217.88,217.73,19.6081962]
[1734383985715,2.2946,217.84,217.77,2.2953]
[1734383985923,2.2946,217.84,217.78,3.9957]
[1734383986225,2.2946,217.84,217.78,6.2909]
[1734383987320,2.2946,217.84,217.79,2.2952]
[1734383987721,2.2948,217.83,217.78,3.9957]
[1734383987925,2.2948,217.83,217.78,6.291]
[1734383988737,2.44,217.88,217.78,1.5557]
[1734383989434,2.295,217.81,217.78,1.5557]
[1734383991126,2.2951,217.8,217.78,1.5557]
[1734383991327,22.0481962,217.86,217.7,7.01629462]
[1734383991527,22.0481962,217.86,217.71,4.0365]
[1734383991733,22.0481962,217.86,217.72,2.2959]
[1734383992930,2.2955,217.77,217.72,2.2959]
[1734383993729,2.2955,217.77,217.71,4.0365]
[1734383993931,2.2955,217.77,217.73,2.2958]
[1734383994130,2.2949,217.82,217.71,4.0365]
[1734383994329,22.0481962,217.86,217.71,4.0365]
[1734383995134,2.2955,217.77,217.72,2.2958]
[1734383995328,22.0481962,217.86,217.71,4.0365]
[1734383995530,0.68959512,217.85,217.71,4.0365]
[1734383996134,2.2955,217.76,217.72,2.2959]
[1734383997137,2.2956,217.75,217.71,6.3325]
[1734383998934,19.6081962,217.86,217.71,4.0365]
[1734383999237,0.68956351,217.85,217.71,4.0365]
[1734383999430,2.44,217.87,217.71,4.0365]
[1734383999728,1.7156,217.9,217.71,4.0365]
[1734383999729,2.2949,217.82,217.71,4.0365]
[1734384001033,2.2949,217.82,217.77,2.2953]
[1734384001938,2.295,217.81,217.77,2.2953]
[1734384002733,2.2949,217.82,217.77,2.2953]
[1734384003241,2.44,217.88,217.77,2.2953]
[1734384004239,2.295,217.81,217.77,2.2953]
[1734384007734,2.2946,217.85,217.79,2.2951]
[1734384007933,4.1556,217.9,217.79,12.24540107]
[1734384008236,78.74031971,218.0,217.79,12.24540107]
[1734384008237,2.44,217.92,217.8,3.1211]
[1734384008433,0.68936201,217.91,217.8,3.1211]
[1734384008734,12.24540107,217.91,217.8,3.1211]
[1734384008933,0.68931942,217.9,217.8,3.1211]
[1734384009340,12.24540107,217.91,217.8,3.1211]
[1734384009638,2.2944,217.86,217.82,2.2948]
[1734384009840,10.568168,217.93,217.81,2.44]
[1734384010036,10.568168,217.93,217.82,12.24540107]
[1734384010037,0.68930394,217.92,217.82,12.24540107]
[1734384010430,0.68930394,217.92,217.84,2.2946]
[1734384010731,0.68930394,217.92,217.82,12.24540107]
[1734384011739,0.68930394,217.92,217.81,2.44]
[1734384012637,13.00693903,217.93,217.82,2.2948]
[1734384012838,0.68924708,217.91,217.82,2.2948]
[1734384013137,2.2945,217.86,217.82,2.2948]
[1734384013529,12.24540107,217.91,217.81,2.44]
[1734384013730,2.2949,217.82,217.81,5.46763449]
[1734384014330,2.2949,217.82,217.8,3.1211]
[1734384014331,12.24540107,217.91,217.8,3.1211]
[1734384014535,11.25844406,217.9,217.8,3.1211]
[1734384014735,0.68934207,217.89,217.77,6.3443]
[1734384014949,2.44,217.88,217.77,6.3443]
[1734384015137,0.68934207,217.87,217.77,6.3443]
[1734384015441,2.295,217.81,217.77,6.3443]
[1734384015641,2.44,217.88,217.79,14.54060107]
[1734384015838,2.44,217.88,217.79,12.24540107]
[1734384016036,2.2948,217.83,217.79,12.24540107]
[1734384016437,2.44,217.88,217.79,14.54050107]
[1734384016834,2.44,217.88,217.77,4.0489]
[1734384017039,2.44,217.88,217.78,2.2953]
[1734384017348,0.68937115,217.87,217.78,2.2953]
[1734384018742,2.295,217.81,217.78,2.2953]
[1734384020546,2.295,217.81,217.77,6.3443]
[1734384024447,2.2948,217.83,217.79,12.24540107]
[1734384025353,2.2946,217.85,217.79,12.24540107]
[1734384025544,2.2946,217.85,217.8,3.0601]
[1734384026146,12.24540107,217.94,217.8,3.0601]
[1734384026347,13.02144235,217.93,217.82,12.24540107]
[1734384026651,3.12923488,217.92,217.82,12.24540107]
[1734384026853,12.93463595,217.91,217.8,3.0601]
[1734384027155,0.68923488,217.9,217.8,3.0601]
[1734384027751,11.27067403,217.9,217.8,3.0601]
[1734384027956,0.68923488,217.89,217.8,3.0601]
[1734384028156,0.68923488,217.89,217.78,2.2952]
[1734384028347,12.24540107,217.88,217.77,1.6089]
[1734384028552,3.12923488,217.87,217.77,1.6089]
[1734384028756,0.68923488,217.86,217.77,1.6089]
[1734384029064,2.44,217.87,217.77,1.6089]
[1734384029259,0.68944203,217.85,217.77,1.6089]
[1734384029561,0.68944546,217.84,217.77,1.6089]
[1734384030165,0.68944203,217.85,217.77,1.6089]
[1734384030562,2.2951,217.81,217.77,1.6089]
[1734384032261,2.2951,217.81,217.77,3.9043]
[1734384032654,0.68944203,217.85,217.77,1.6089]
[1734384033262,2.295,217.81,217.77,1.6089]
[1734384033865,2.295,217.81,217.77,3.9042]
[1734384034265,2.295,217.81,217.79,7.83673528]
[1734384034961,0.68944203,217.85,217.79,7.83673528]
[1734384035266,0.68944203,217.85,217.81,7.83673528]
[1734384035967,2.2947,217.84,217.81,7.83673528]
[1734384036365,0.68944203,217.85,217.77,1.6089]
[1734384036764,2.295,217.81,217.79,7.83673528]
[1734384038069,2.2949,217.82,217.79,7.83673528]
[1734384038975,2.2946,217.85,217.81,7.83673528]
[1734384039273,2.44,217.86,217.83,7.83673528]
[1734384039467,2.2945,217.86,217.83,7.83673528]
[1734384041567,2.44,217.89,217.83,7.83673528]
[1734384041766,7.83673528,217.88,217.81,10.13163528]
[1734384042372,2.44,217.89,217.83,7.83673528]
[1734384042974,2.2945,217.86,217.83,7.83673528]
[1734384044374,2.2945,217.85,217.83,7.83673528]
[1734384045177,2.2945,217.85,217.82,2.2948]
[1734384046483,2.2945,217.85,217.83,7.83673528]
[1734384048184,4.5867,217.97,217.83,7.83673528]
[1734384048484,7.83673528,217.93,217.85,10.13123528]
[1734384048881,0.68919471,217.92,217.85,10.13123528]
[1734384049084,3.12919471,217.92,217.85,10.13123528]
[1734384049384,7.83673528,217.95,217.87,7.83673528]
[1734384049686,2.44,217.93,217.87,7.83673528]
[1734384049888,7.83673528,217.95,217.87,7.83673528]
[1734384050076,0.6891764,217.94,217.87,10.13093528]
[1734384050480,3.1291764,217.94,217.89,7.83673528]
[1734384050681,2.294,217.91,217.89,7.83673528]
[1734384051686,10.27673528,217.95,217.89,7.83673528]
[1734384051982,2.294,217.9,217.89,7.83673528]
[1734384053487,2.2938,217.92,217.89,7.83673528]
[1734384053987,2.2938,217.92,217.91,7.83673528]
[1734384054188,2.2937,217.93,217.91,7.83673528]
[1734384054390,7.83673528,217.99,217.91,7.83673528]
[1734384054686,2.44,217.99,217.93,7.83673528]
[1734384054888,7.83673528,218.01,217.95,7.83673528]
[1734384055188,2.44,218.02,217.95,7.83673528]
[1734384055387,2.2932,217.98,217.95,7.83673528]
[1734384057687,2.293,218.0,217.97,7.83673528]
[1734384057883,7.83673528,218.06,217.99,7.83673528]
[1734384058191,0.68885359,218.05,217.99,7.83673528]
[1734384058483,2.2925,218.04,217.99,7.83673528]
[1734384058689,10.5551328,218.05,217.99,7.83673528]
[1734384058989,0.68885385,218.04,217.99,7.83673528]
[1734384059286,0.68885385,218.05,217.99,7.83673528]
[1734384059490,0.68885385,218.03,217.99,7.83673528]
[1734384059788,2.2928,218.02,217.99,7.83673528]
[1734384060287,7.83673528,218.06,217.99,7.83673528]
[1734384060590,2.2926,218.03,217.99,10.12973528]
[1734384061088,2.2926,218.03,218.01,7.83673528]
[1734384061488,2.2927,218.02,218.01,7.83673528]
[1734384062290,2.44,218.09,218.01,7.83673528]
[1734384062485,0.68869987,218.08,218.03,7.83673528]
[1734384062684,0.68869987,218.08,218.05,7.83673528]
[1734384062883,0.68869987,218.09,218.07,7.83673528]
[1734384063193,10.27673528,218.13,218.07,7.83673528]
[1734384063486,7.83673528,218.13,218.07,7.83673528]
[1734384063693,0.68857601,218.08,218.03,7.83673528]
[1734384064093,2.293,218.02,218.01,7.83673528]
[1734384064293,7.83673528,218.07,218.0,3.0819]
[1734384064589,2.2934,217.98,217.97,7.83673528]
[1734384066389,2.2934,217.98,217.97,13.46301428]
[1734384066595,2.2933,217.99,217.97,13.46301428]
[1734384066790,2.44,218.04,217.97,13.46301428]
[1734384066994,2.44,218.04,217.99,7.83673528]
[1734384067185,2.293,218.02,217.99,7.83673528]
[1734384067390,0.68886037,218.03,218.01,7.83673528]
[1734384068593,2.44,218.08,218.01,7.83673528]
[1734384068788,8.52547231,218.07,218.01,7.83673528]
[1734384068991,0.68873703,218.06,218.01,7.83673528]
[1734384069293,2.2927,218.05,218.01,7.83673528]
[1734384069497,5.47382584,218.16,218.03,7.83673528]
[1734384069697,0.6886763,218.13,218.11,7.83673528]
[1734384069996,0.6886763,218.13,218.09,14.50069936]
[1734384070386,2.2916,218.16,218.09,14.50069936]
[1734384071393,2.2916,218.15,218.09,12.20849936]
[1734384072191,2.2916,218.15,218.07,3.0741]
[1734384072394,2.2916,218.15,218.08,14.50079936]
[1734384072895,2.44,218.2,218.08,12.20849936]
[1734384073095,0.68826704,218.19,218.08,12.20849936]
[1734384073294,12.20849936,218.18,218.07,3.0741]
[1734384073496,0.68826704,218.17,218.07,3.0741]
[1734384074391,2.2921,218.11,218.07,3.0741]
[1734384076100,2.44,218.14,218.07,3.0741]
[1734384076302,2.44,218.14,218.07,5.3665]
[1734384076704,2.2918,218.13,218.07,5.3665]
[1734384077000,2.2918,218.13,218.08,2.2923]
[1734384077196,2.2918,218.13,218.07,3.0741]
[1734384077197,2.2919,218.12,218.07,3.0741]
[1734384077998,2.44,218.14,218.08,2.2923]
[1734384078301,2.2918,218.13,218.08,2.2923]
[1734384079101,2.292,218.12,218.08,2.2923]
[1734384080500,2.44,218.17,218.07,5.3665]
[1734384080697,12.20849936,218.15,218.04,2.44]
[1734384080902,12.20849936,218.12,217.99,12.20849936]
[1734384081105,2.2928,218.04,218.02,5.39915725]
[1734384081902,2.42,218.11,218.02,5.39915725]
[1734384082200,2.42,218.11,218.02,7.69215725]
[1734384082405,2.42,218.11,218.02,5.39915725]
[1734384082800,2.2925,218.07,218.02,7.69215725]
[1734384083006,2.42,218.11,218.02,7.69215725]
[1734384083305,2.42,218.11,217.99,12.20849936]
[1734384083506,12.20849936,218.09,217.97,2.42]
[1734384084406,2.2929,218.03,217.99,2.2933]
[1734384084605,2.2929,218.03,217.97,2.42]
[1734384085412,2.2929,218.03,217.98,2.2934]
[1734384085611,2.2929,218.03,218.0,5.43803169]
[1734384086216,2.293,218.02,217.97,2.2935]
[1734384086511,14.64849936,218.06,217.96,5.47106955]
[1734384086709,2.44,218.05,217.96,5.47106955]
[1734384087514,12.20849936,218.03,217.92,1.07886]
[1734384087815,2.2937,217.96,217.92,3.37286]
[1734384088518,2.2937,217.96,217.94,5.57917212]
[1734384091711,2.44,218.04,217.95,12.20849936]
[1734384091920,2.44,218.06,217.95,15.28509936]
[1734384092115,2.44,218.06,217.96,2.2936]
[1734384092116,2.2932,218.01,217.96,2.2936]
[1734384092718,12.20849936,218.04,217.94,8.01917212]
[1734384092910,12.20849936,218.04,217.94,2.44]
[1734384093116,2.2937,217.96,217.93,1.5379]
[1734384093508,2.2937,217.96,217.93,7.08127289]
[1734384093915,2.2938,217.95,217.93,7.08127289]
[1734384098117,2.2935,217.98,217.93,7.08127289]
[1734384098316,0.68885574,218.03,217.95,12.20849936]
[1734384099022,2.2933,218.0,217.95,14.62849936]
[1734384099213,2.42,218.07,217.95,14.62849936]
[1734384099624,10.18625317,218.1,217.95,14.62849936]
[1734384099625,0.6887107,218.06,217.95,14.62849936]
[1734384099920,1.37742143,218.06,217.95,14.62849936]
[1734384100314,2.2929,218.03,218.0,2.2932]
[1734384101314,2.2929,218.03,217.99,2.2933]
[1734384102926,0.6887107,218.06,217.99,2.2933]
[1734384103114,2.2932,218.0,217.97,2.2935]
[1734384104124,2.2932,218.0,217.97,10.11742242]
[1734384105029,2.2932,218.0,217.99,7.82392242]